{"text_format":"1","workbook":"xlsx","n_sheets":2,"sheets":["Leyenda","Matriz"],"not_rendered":{"charts":0,"images":0,"macros":1,"external_links":0,"defined_names":0,"comments":0,"pivot_tables":0},"unopened":[],"bounds":{"document_bytes":16777216,"sheet_cells":100000,"rows_first":2000,"rows_last":500,"rows_between":2000,"halvings":0,"cell_chars":16384,"cell_head_chars":4096},"cells_cut":0,"cells_raw":0,"read":"whole","date_system":"1900"}

{"sheet":"Leyenda","index":0,"n_rows":12,"n_cols":9,"rows_kept":12,"cut":false,"hidden":false,"merged":[[4,1,4,8],[5,4,5,8],[7,1,11,1]]}
[]
[]
[]
[]
[null,"LEYENDA"]
[null,null,null,null,"GRAVEDAD (IMPACTO)"]
[null,null,null,null,"MUY BAJO 1","BAJO         2","MEDIO        3","ALTO      4","MUY ALTO 5"]
[null,"APARICIÓN (probabilidad)","MUY ALTA",5,5,10,15,20,25]
[null,null,"ALTA",4,4,8,12,16,20]
[null,null,"MEDIA",3,3,6,9,12,15]
[null,null,"BAJA",2,2,4,6,8,12]
[null,null,"MUY BAJA",1,1,2,3,4,5]

{"sheet":"Matriz","index":1,"n_rows":16,"n_cols":11,"rows_kept":16,"cut":false,"hidden":false,"merged":[[4,3,4,10]]}
[]
[]
[]
[]
[null,null,null,"MATRIZ DE RIESGOS"]
[null,null,null,"RIESGO","TIPO","CONSECUENCIA DE LA OCURRENCIA DEL RIESGO",null,null,null,null,"TRATAMIENTO DEL RIESGO"]
[null,null,null,"Situación económica del país ","Económico y Social","Disminución de capacidad adquisitiva del cliente para la adquisición del servicio",2,3,{"$f":"G7*H7","v":6},{"$f":"IF(AND(15<=I7,I7<=25),\"Muy grave\",IF(9<=I7,\"Importante\",IF(3<=I7,\"Apreciable\",\"Marginal\")))","v":"Apreciable"},"Aceptar: Se ha visto periódicamente una mejora en la situación económica del país con disminución de tasa de desempleo y tasas de crecimiento económico"]
[null,null,null,"Competencia a nivel regional","Económico","Menor cuota de mercado",4,3,{"$f":"G8*H8","v":12},{"$f":"IF(AND(15<=I8,I8<=25),\"Muy grave\",IF(9<=I8,\"Importante\",IF(3<=I8,\"Apreciable\",\"Marginal\")))","v":"Importante"},"Mitigar: Incremento en campañas de publicidad y de fidelización del cliente"]
[null,null,null,"Subida abrupta en el precio de retoma de los vehículos","Económico","Variación en el precio del servicio",2,3,6,{"$f":"IF(AND(15<=I9,I9<=25),\"Muy grave\",IF(9<=I9,\"Importante\",IF(3<=I9,\"Apreciable\",\"Marginal\")))","v":"Apreciable"},"Aceptar: Precio de los vehículos y valor de salvamento determinado al iniciar el proyecto y no afectan fluctuación del precio del mercado de vehículos usados"]
[null,null,null,"Daños del vehículo durante el mantenimiento previo a la entrega al cliente","Operacional","Costos adicionales de reparación y falta de disponibilidad del vehículo",1,2,2,"Marginal","Aceptar: Estos daños son muy improbables y podrían ser solventados por la aseguradora"]
[null,null,null,"Cambio en los tributos e impuestos aplicables","Regulatorio","Incremento en el precio de los seguros e impuestos",3,3,9,"Importante","Mitigar: Estipulación contractual con aseguradoras y proveedores que permita revisar precios frente a modificaciones en tributos y aranceles aplicables "]
[null,null,null,"Incumplimiento de las aseguradoras en caso de accidente del vehículo","Económico","Disminución de planta automotriz a ofrecer al cliente",2,5,10,"Importante","Mitigar: Adquisición de pólizas de seguro a todo riesgo."]
[null,null,null,"No disponibilidad de vehículos para el alquiler","Operacional","Incumplimiento al cliente",2,5,10,"Importante","Mitigar: Tener un vehículo especial para imprevistos de disponibilidad"]
[null,null,null,"Bloqueo de las vías de acceso a la ciudad","Social","Imposibilidad del cliente de viajar o retornar el vehículo a la empresa",2,5,10,"Importante","Mitigar: Devolución del vehículo en ciudades cercanas por bloqueos de vía a acceso a la ciudad"]
[null,null,null,"Cambio en el precio de la gasolina","Económico ","Disminución de capacidad adquisitiva del cliente para hacer uso del servicio",2,4,8,"Apreciable","Aceptar: La variación del precio de la gasolina no afecta directamente el precio del servicio ya que este es adquirido externamente por el cliente."]
[null,null,null,"Cambio en el precio de las autopartes","Económico","Incremento en el precio del mantenimiento de los vehículos",2,5,10,"Importante","Mitigar: Alianzas con empresas de autopartes para mantener un precio competitivo en repuestos."]